Cogmind - Beta 9.4 @@@ ROGUE MODE // 2020.02.08 @ 12:22:19 Player: Stryker Result: Escaped! Performance ------------- Evolutions (9) 4500 Regions Visited (23) 4600 Robots Destroyed (212) 1060 Value Destroyed (9702) 9702 Prototype IDs (52) 1040 Alien Tech Used (0) 0 Bonus (4822) 4822 TOTAL SCORE: 25724 Bonus ------- High Alert Combat Kills 142 Follower Combat Kills 1683 Aligned with FarCom 300 Met Data Miner 300 Win 3000 Friendly Fire -603 Cogmind --------- Core Integrity 1204/1600 Matter 290/300 Energy 1183/1190 System Corruption 7% Temperature Cool (3) Movement Treading (145) Location To Epsilon Eridani Parts ------- > --- POWER (2) -------- Light Quantum Reactor > --- PROPULSION (6) --- Biometal Heavy Treads > --- UTILITY (13) ----- Advanced Heat Sink Large Storage Unit High-capacity Storage Unit Experimental Energy Well Improved Terrain Scan Processor Advanced Terrain Scan Processor Advanced Core Analyzer Improved System Shield > --- WEAPON (4) ------- Longsword +1 > --- INVENTORY (18) --- Light Quantum Reactor Light Quantum Reactor Myomer Leg Myomer Leg Myomer Leg Myomer Leg Large Storage Unit High-capacity Matter Pod (200) Improved Terrain Scanner Improved Thermal Shield Phase Gun KE Penetrator Improved KE Penetrator Improved KE Penetrator Force Lance Peak State ------------ > --- POWER ------------ Light Particle Reactor Quantum Reactor > --- PROPULSION ------- Heavy Treads Armored Heavy Treads Advanced Heavy Treads > --- UTILITY ---------- Improved Coolant Injector Large Storage Unit High-capacity Storage Unit Experimental Energy Well Improved Terrain Scan Processor Advanced Terrain Scan Processor Advanced Core Analyzer Advanced Phase Shifter Centrium Medium Armor Plating Centrium Medium Armor Plating Light Regenerative Plating Advanced Force Field Improved System Shield > --- WEAPON ----------- Gamma Rifle Improved KE Penetrator Improved KE Penetrator Improved KE Penetrator > --- INVENTORY -------- Light Quantum Reactor Biometal Medium Treads Biometal Heavy Treads Advanced Heat Sink Large Storage Unit High-capacity Matter Pod Improved Terrain Scanner Experimental Terrain Scanner Advanced Targeting Computer Advanced Weapon Cycler Improved Thermal Shield System Backup Module Gamma Rifle Phase Gun Nova Cannon Longsword +1 Force Lance [Rating: 183] Favorites ----------- Power Heavy Deuterium Engine Engine Heavy Deuterium Engine Power Core Light Nuclear Core Reactor Quantum Reactor Propulsion Light Treads Treads Light Treads Leg Myomer Leg Wheel Armored Huge Wheel Hover Unit Aerolev Unit Utility Large Storage Unit Device Improved Terrain Scanner Storage Large Storage Unit Processor Advanced Terrain Scan Processor Hackware Improved System Shield Protection Centrium Medium Armor Plating Weapon Longsword +1 Energy Gun Heavy EM Shotgun Energy Cannon Nova Cannon Ballistic Gun Improved KE Penetrator Ballistic Cannon Gauss Cannon Launcher Heavy Rocket Launcher Slashing Weapon Longsword +1 Piercing Weapon Force Lance Build | -11 -10 -10 -10 -9 -8 -8 -7 -7 -7 -7 -6 -6 -5 -5 -5 -5 -5 -4 -4 -4 -3 -2 -1 ------- Run | Scr Mat Min Exi Min Mat Sto Fac Low Low Dat Pro Fac Fac Ext Cet Arc Hub Fac Was Fac Res Res Acc Slots Evolved 18 | . . . . . 4 . 2 . . . . 2 2 . . . . 2 . . 2 2 2 Power 1 | . . . . . . . . . . . . . . . . . . . . . . . 1 Propulsion 4 | . . . . . 2 . 1 . . . . . 1 . . . . . . . . . . Utility 11 | . . . . . 2 . 1 . . . . 1 1 . . . . 2 . . 2 1 1 Weapon 2 | . . . . . . . . . . . . 1 . . . . . . . . . 1 . Parts Attached 325 | 3 1 1 1 4 33 37 50 9 5 . 7 21 13 24 9 2 8 2 2 4 36 22 31 Power 13 | . . . . . 2 2 3 . . . . 1 . . 1 . . . . . . . 4 Engine 7 | . . . . . 2 2 2 . . . . 1 . . . . . . . . . . . Core 1 | . . . . . . . 1 . . . . . . . . . . . . . . . . Reactor 5 | . . . . . . . . . . . . . . . 1 . . . . . . . 4 Propulsion 64 | 1 1 1 . . 9 11 11 1 1 . 1 3 3 7 . 2 2 . 1 1 2 1 5 Treads 47 | . 1 . . . 6 9 8 1 1 . 1 2 2 6 . 1 2 . 1 1 2 1 2 Leg 3 | . . . . . . . . . . . . . . . . . . . . . . . 3 Wheel 13 | 1 . 1 . . 3 1 3 . . . . 1 1 1 . 1 . . . . . . . Hover 1 | . . . . . . 1 . . . . . . . . . . . . . . . . . Flight . | . . . . . . . . . . . . . . . . . . . . . . . . Utility 121 | 2 . . 1 2 11 5 20 2 1 . 3 9 6 6 4 . 3 2 1 1 22 12 8 Device 63 | 1 . . . . 1 2 9 1 1 . 1 8 4 4 1 . 3 . 1 1 10 9 6 Storage 13 | . . . 1 1 2 1 4 . . . . . . . . . . . . . 1 1 2 Processor 8 | 1 . . . . 1 . 4 . . . . . . . . . . . . . 2 . . Hackware 4 | . . . . . . . 1 . . . . . 1 . . . . 2 . . . . . Protection 33 | . . . . 1 7 2 2 1 . . 2 1 1 2 3 . . . . . 9 2 . Artifact . | . . . . . . . . . . . . . . . . . . . . . . . . Weapon 127 | . . . . 2 11 19 16 6 3 . 3 8 4 11 4 . 3 . . 2 12 9 14 Energy Gun 48 | . . . . . 5 7 9 3 . . 2 3 1 4 . . 1 . . . 4 3 6 Energy Cannon 3 | . . . . . . 1 . . . . . . . . . . . . . . . . 2 Ballistic Gun 36 | . . . . 1 3 5 1 1 . . 1 3 2 4 3 . 1 . . 1 5 3 2 Ballistic Cannon 2 | . . . . . 1 1 . . . . . . . . . . . . . . . . . Launcher 9 | . . . . . 1 1 1 1 1 . . . . 3 1 . . . . . . . . Special Weapon . | . . . . . . . . . . . . . . . . . . . . . . . . Impact Weapon . | . . . . . . . . . . . . . . . . . . . . . . . . Slashing Weapon 27 | . . . . 1 1 4 5 1 2 . . 2 1 . . . 1 . . 1 3 3 2 Piercing Weapon 2 | . . . . . . . . . . . . . . . . . . . . . . . 2 Special Melee Weapon . | . . . . . . . . . . . . . . . . . . . . . . . . Unidentified Prototypes 14 | . . . . . 2 6 1 . . . . 1 . . 2 . . . . . 1 1 . Parts Lost 70 | . . . . . 4 19 2 1 . . 1 3 . 1 1 1 . . . . 4 4 29 Power 7 | . . . . . 1 1 . . . . . 1 . . . . . . . . . . 4 Propulsion 22 | . . . . . 1 7 1 1 . . 1 2 . . . 1 . . . . . 1 7 Utility 22 | . . . . . 1 5 . . . . . . . 1 . . . . . . 4 1 10 Weapon 19 | . . . . . 1 6 1 . . . . . . . 1 . . . . . . 2 8 Highest Loss Streak 16 | . . . . . 1 10 1 1 . . 1 2 . 1 1 1 . . . . 3 2 16 Average Slot Usage (%) 91 | . 100 100 100 100 99 98 95 91 92 92 92 87 87 84 87 88 89 93 89 89 84 85 88 Engine 5 | . 14 14 14 14 9 9 6 7 7 7 7 5 5 5 2 . . . . . . . . Reactor 1 | . . . . . . . . . . . . . . . 2 5 5 5 5 5 4 4 7 Treads 18 | . 13 14 14 14 25 27 25 22 23 23 23 19 17 11 11 11 14 21 15 15 9 10 10 Wheel 7 | . 14 14 14 14 9 8 7 7 7 7 7 6 11 11 11 11 9 5 5 5 4 2 . Device 9 | . 14 14 14 2 . 4 10 12 15 15 9 8 6 9 10 11 11 10 10 10 12 11 14 Storage 13 | . 14 14 14 17 18 20 15 15 15 15 15 13 11 11 11 11 11 10 10 10 9 8 12 Processor 5 | . . . . . . . 6 7 7 7 7 6 5 5 5 5 5 5 5 5 7 13 12 Hackware 2 | . . . . . . . 1 . . . . . 1 . . . . 9 10 10 8 4 4 Protection 7 | . . . . 7 16 9 2 2 . . 4 6 7 8 11 11 11 10 10 10 11 13 8 Energy Gun 6 | . 14 14 14 14 9 4 8 7 4 . 5 7 3 2 5 5 5 5 5 5 4 3 1 Ballistic Gun 6 | . 14 14 14 13 1 6 . . 6 . 6 6 9 12 9 11 9 5 5 5 6 11 8 Slashing Weapon 3 | . . . . . 4 5 5 2 1 7 1 4 2 . . . 1 5 5 4 1 1 2 Naked Turns . | . . . . . . . . . . . . . . . . . . . . . . . . Heaviest Build 145 | 13 13 13 17 24 67 63 60 64 58 56 64 75 81 88 91 87 87 84 84 88 115 119 145 Greatest Support 200 | 20 10 16 16 16 60 82 32 28 28 28 28 60 40 56 56 56 56 28 28 28 130 200 200 Greatest Overweight (x) 4 | 1 1 1 1 1 4 3 3 2 2 1 2 2 2 3 1 1 3 2 2 3 4 4 1 Average Overweight (x) 1 | . 1 . . 1 2 2 1 1 1 1 1 1 1 1 1 1 1 2 2 2 2 . . Largest Inventory Capacity 18 | 6 6 6 8 12 16 16 16 16 16 16 16 16 16 16 16 16 16 16 16 16 18 18 18 Average Capacity 15 | 6 6 6 7 9 12 16 16 16 16 16 16 16 16 16 16 16 16 16 16 16 17 18 18 Most Carried 18 | 6 6 6 8 12 16 16 16 16 16 16 16 16 16 16 16 16 16 16 16 16 18 18 18 Average Carried 14 | 6 5 5 6 8 11 14 15 15 16 16 15 15 15 15 15 14 15 14 15 15 17 16 16 Final Capacity 18 | 6 6 6 8 12 16 16 16 16 16 16 16 16 16 16 16 16 16 16 16 16 18 18 18 Final Carried 18 | 6 6 6 8 12 16 16 16 16 16 16 16 16 16 16 15 16 16 14 16 16 18 18 15 Class Distribution -------------------- 31% | Mutant 21% | Scavenger-Assassin 14% | Scavenger-Mutant 9% | Skirmisher 7% | Assassin 6% | Scavenger-Tank 5% | Scavenger-Skirmisher Dominant Class ---------------- Mutant | -10/Materials Mutant | -10/Mines Mutant | -10/Exiles Mutant | -9/Mines Mutant | -8/Materials Scavenger-Mutant | -8/Storage Scavenger-Assassin | -7/Factory Mutant | -7/Lower Caves Mutant | -7/Lower Caves Mutant | -7/Data Miner Mutant | -6/Proximity Caves Assassin | -6/Factory Assassin | -5/Factory Skirmisher | -5/Extension Scavenger-Tank | -5/Cetus Scavenger-Tank | -5/Archives Scavenger-Skirmisher | -5/Hub_04(d) Scavenger-Assassin | -4/Factory Scavenger-Assassin | -4/Waste Scavenger-Assassin | -4/Factory Scavenger-Assassin | -3/Research Scavenger-Skirmisher | -2/Research Scavenger-Assassin | -1/Access Resources | -11 -10 -10 -10 -9 -8 -8 -7 -7 -7 -7 -6 -6 -5 -5 -5 -5 -5 -4 -4 -4 -3 -2 -1 ----------- Run | Scr Mat Min Exi Min Mat Sto Fac Low Low Dat Pro Fac Fac Ext Cet Arc Hub Fac Was Fac Res Res Acc Matter Collected 6666 | 240 . 26 . 54 430 777 725 130 50 . 97 271 230 735 263 167 86 36 . 320 853 483 693 Remotely . | . . . . . . . . . . . . . . . . . . . . . . . . Salvage Created 11527 | 117 . 20 . 50 849 1392 875 135 . . 108 460 347 1615 402 320 88 . . 303 1569 1167 1710 Parts 567 | 3 . 2 . 3 32 74 37 6 . . 3 19 26 71 13 8 4 . . 7 92 57 110 Haulers Intercepted 1 | . . . . . 1 . . . . . . . . . . . . . . . . . . Recyclers Shooed 5 | . . . . . 2 . . . . . . . . 1 . . . . . . 1 1 . Parts Field Recycled . | . . . . . . . . . . . . . . . . . . . . . . . . Retrieved Matter . | . . . . . . . . . . . . . . . . . . . . . . . . Parts Self-Destructed 16 | . . . . . . . . . 5 . 11 . . . . . . . . . . . . Prevented 5 | . . . . . . . . 5 . . . . . . . . . . . . . . . Kills | -11 -10 -10 -10 -9 -8 -8 -7 -7 -7 -7 -6 -6 -5 -5 -5 -5 -5 -4 -4 -4 -3 -2 -1 ------- Run | Scr Mat Min Exi Min Mat Sto Fac Low Low Dat Pro Fac Fac Ext Cet Arc Hub Fac Was Fac Res Res Acc Combat Hostiles Destroyed 158 | . . 1 . 1 10 33 16 2 . . 2 6 3 16 7 3 1 . . 4 23 10 20 Melee 6 | . . . . . 2 . 1 . . . . . . . . . . . . 1 . 2 . Guns 123 | . . 1 . 1 7 19 8 1 . . 2 5 3 14 5 3 1 . . 3 23 8 19 Cannons 2 | . . . . . 1 1 . . . . . . . . . . . . . . . . . AOE 24 | . . . . . . 13 5 1 . . . 1 . 2 2 . . . . . . . . Classes Destroyed 15 | 2 . 1 . 1 4 3 1 1 . . 1 . 1 . . . . . . . . . . Worker 9 | . . . . . . 1 2 . . . . . 1 1 . . . . . . . 1 3 Builder 12 | . . . . . . 3 3 . . . . . . 3 . . . . . . . 1 2 Tunneler 5 | 1 . . . . . 2 . . . . . 1 . . . . . . . . . . 1 Hauler 1 | . . . . . 1 . . . . . . . . . . . . . . . . . . Recycler 13 | 1 . . . . 3 1 1 . . . . . 1 4 . . . . . . . 2 . Operator 3 | . . . . . . . . . . . . . 1 . . 1 . . . . 1 . . Watcher 9 | . . . . . 1 . 1 . . . . 2 . 1 . . . . . . 1 2 1 Swarmer 26 | . . 1 . . . 7 8 . . . . . . 4 3 . . . . . 3 . . Grunt 55 | . . . . 1 6 13 . . . . 1 4 . 8 2 . . . . 3 3 4 10 Brawler 4 | . . . . . . 3 . . . . . . . . . . . . . . 1 . . Duelist 5 | . . . . . 1 2 . . . . . . . . 1 . . . . . 1 . . Sentry 31 | . . . . . 3 8 6 1 . . . . 1 3 . 3 1 . . 1 3 1 . Hunter 5 | . . . . . . . . 1 . . . . . . . . . . . . . 2 2 Programmer 29 | . . . . . . . 2 . . . . 2 2 . . . . . . . 12 3 8 Behemoth 2 | . . . . . . . . . . . 1 . . 1 . . . . . . . . . Cetus Guard 1 | . . . . . . . . . . . . . . . 1 . . . . . . . . Enhanced Grunt 1 | . . . . . . . . . . . . 1 . . . . . . . . . . . Savage 1 | . . . . . . . . . . . . . . . 1 . . . . . . . . Best Kill Streak 15 | 2 . 1 . 1 4 15 7 1 . . 1 4 5 4 6 3 1 . . 2 4 5 12 Combat Bots Only 11 | . . 1 . 1 3 11 6 1 . . 1 3 3 4 6 3 1 . . 2 4 3 10 Max Kills in Single Turn 4 | 1 . 1 . 1 1 4 4 1 . . 1 2 1 2 3 1 1 . . 1 2 3 2 Gunslinging 1 | . . . . . . 1 . . . . . . . . . . . . . . 1 . 1 Exploded 3 | . . . . . . 3 2 1 . . . 1 . 1 2 . . . . . . . . Melee 1 | . . . . . 1 . 1 . . . . . . . . . . . . 1 . 1 . Uniques/NPCs Destroyed . | . . . . . . . . . . . . . . . . . . . . . . . . Combat | -11 -10 -10 -10 -9 -8 -8 -7 -7 -7 -7 -6 -6 -5 -5 -5 -5 -5 -4 -4 -4 -3 -2 -1 -------- Run | Scr Mat Min Exi Min Mat Sto Fac Low Low Dat Pro Fac Fac Ext Cet Arc Hub Fac Was Fac Res Res Acc Damage Taken 19060 | . . 58 . 35 711 3020 1490 163 . . 451 671 293 1519 530 572 37 . . 384 2180 1363 5583 Core 1451 | . . . . 12 79 327 168 21 . . 37 39 . 154 47 16 . . . 71 57 27 396 Absorbed by Shields 2173 | . . . . . . . . . . . . . . 128 159 210 13 . . 138 669 249 607 Reduced by Siege Mode 534 | . . . . . . . . . . . . . . . . . . . . . 167 76 291 Core Remaining (%) 82 | 100 . . . 95 . 26 . . . . 67 95 . . . . 78 . . 93 95 98 75 Volleys Fired 491 | 10 2 4 . 4 46 78 42 4 . . 8 22 9 58 19 19 2 . . 10 67 26 61 Largest 4 | 2 2 2 . 2 2 2 2 2 . . 2 3 3 3 3 3 3 . . 3 3 4 4 Hottest 233 | 60 60 60 . 60 98 98 110 100 . . 85 145 110 164 160 149 133 . . 133 192 180 233 Shots Fired 1137 | 20 4 8 . 8 73 149 79 8 . . 16 55 26 147 51 52 6 . . 24 183 79 149 Gun 1066 | 20 4 8 . 8 63 133 75 8 . . 16 55 26 129 47 52 6 . . 24 183 79 130 Cannon 38 | . . . . . 9 10 . . . . . . . . . . . . . . . . 19 Launcher 33 | . . . . . 1 6 4 . . . . . . 18 4 . . . . . . . . Special . | . . . . . . . . . . . . . . . . . . . . . . . . Kinetic 697 | 10 2 4 . 4 23 107 17 . . . 8 19 25 96 30 38 4 . . 14 127 65 104 Thermal 224 | . . . . . . 12 27 . . . 8 22 1 31 17 14 . . . . 53 4 35 Explosive 11 | . . . . . 1 6 4 . . . . . . . . . . . . . . . . Electromagnetic 205 | 10 2 4 . 4 49 24 31 8 . . . 14 . 20 4 . 2 . . 10 3 10 10 Robot Hit Streak 48 | 6 1 1 . 5 14 19 37 36 . . 48 5 26 27 8 13 12 . . 34 41 12 31 Robot Miss Streak 5 | 2 1 5 . 1 4 3 5 . . . 2 3 . 4 4 2 . . . . 4 2 2 Penetration Max 1 | . . . . . 1 1 . . . . . . 1 1 1 1 . . . 1 1 1 1 Secondary Targets 23 | . . . . . 1 6 . . . . . . . 3 2 . . . . . 4 1 6 Max Gunslinging Chain 1 | . . . . . 1 1 . . . . . . . 1 1 . . . . . 1 1 1 Shots Hit Robots 905 | 15 2 2 . 6 68 120 72 8 . . 14 34 21 103 31 43 5 . . 26 152 66 117 Core Hits 451 | 4 1 1 . 3 22 76 49 7 . . 4 16 10 53 21 10 2 . . 7 63 35 67 Critical Hits 69 | . . . . . 4 4 . . . . 1 2 2 4 3 5 . . . 3 14 12 15 Critical Kills 29 | . . . . . . 2 . . . . . 1 2 1 1 3 . . . . 6 5 8 Critical Parts Destroyed 35 | . . . . . 4 2 . . . . 1 1 . 3 2 2 . . . 3 7 5 5 Melee Attacks 222 | . . . . 3 17 18 64 2 5 . . 14 4 . . . 6 1 . 10 19 11 48 Impact . | . . . . . . . . . . . . . . . . . . . . . . . . Slashing 211 | . . . . 3 17 18 64 2 5 . . 14 4 . . . 6 1 . 10 19 11 37 Piercing 11 | . . . . . . . . . . . . . . . . . . . . . . . 11 Sneak Attacks 6 | . . . . . 1 1 3 . . . . . . . . . 1 . . . . . . Combat Hostiles . | . . . . . . . . . . . . . . . . . . . . . . . . Follow-up Attacks . | . . . . . . . . . . . . . . . . . . . . . . . . Damage Inflicted 27444 | 172 23 18 . 69 1648 4083 2387 215 . . 293 901 534 3441 1052 1183 203 . . 806 4441 2069 3906 Guns 20813 | 172 23 18 . 69 868 2166 1159 161 . . 293 740 534 2405 743 1183 89 . . 620 4346 1659 3565 Cannons 394 | . . . . . 134 167 . . . . . . . . . . . . . . . . 93 Explosions 3789 | . . . . . 121 1591 573 54 . . . 105 . 1036 309 . . . . . . . . Melee 2448 | . . . . . 525 159 655 . . . . 56 . . . . 114 . . 186 95 410 248 Ramming . | . . . . . . . . . . . . . . . . . . . . . . . . Kinetic 13975 | 53 10 8 . 18 357 1639 292 . . . 158 224 509 1754 455 895 49 . . 380 2819 1407 2948 Thermal 5310 | . . . . . 121 347 775 54 . . 135 375 25 785 422 288 . . . . 1447 57 479 Explosive 1750 | . . . . . . 1444 306 . . . . . . . . . . . . . . . . Electromagnetic 3961 | 119 13 10 . 51 645 494 359 161 . . . 246 . 902 175 . 40 . . 240 80 195 231 Impact . | . . . . . . . . . . . . . . . . . . . . . . . . Slashing 2416 | . . . . . 525 159 655 . . . . 56 . . . . 114 . . 186 95 410 216 Piercing 32 | . . . . . . . . . . . . . . . . . . . . . . . 32 Highest Corruption 11 | . . . . . . . 3 . . . . 2 3 4 1 1 10 . . . 6 1 11 Average Corruption 3 | . . . . . . . 2 . . . . 1 2 1 1 1 1 . . . 3 1 8 Corruption Purged 22 | . . . . . . . 5 . . . . 4 . 3 . . . . . . 4 1 5 Effects 99 | . . . . . . . 10 . . . . 1 2 13 1 2 1 . . . 28 . 41 Message Errors 26 | . . . . . . . 5 . . . . 1 . 3 . 1 . . . . 8 . 8 Matter Fused 14 | . . . . . . . 2 . . . . . 1 1 . . 1 . . . 4 . 5 Heat Flow Errors 8 | . . . . . . . . . . . . . . 3 . . . . . . 2 . 3 Energy Discharges 10 | . . . . . . . . . . . . . 1 1 . . . . . . 4 . 4 Data Loss (minor) 8 | . . . . . . . . . . . . . . 2 . . . . . . 1 . 5 Misfires 2 | . . . . . . . . . . . . . . . . . . . . . . . 2 Targeting Errors 25 | . . . . . . . 3 . . . . . . 2 1 1 . . . . 8 . 10 Weapon Failures 6 | . . . . . . . . . . . . . . 1 . . . . . . 1 . 4 Overload Shots . | . . . . . . . . . . . . . . . . . . . . . . . . Overflow Damage 620 | . . . . . 158 28 254 15 . . . . . 37 5 . 74 . . . 13 36 . Projectiles 19 | . . . . . . 19 . . . . . . . . . . . . . . . . . Explosions 103 | . . . . . . 9 37 15 . . . . . 37 5 . . . . . . . . Melee 498 | . . . . . 158 . 217 . . . . . . . . . 74 . . . 13 36 . Knockbacks 3 | . . . . . . 3 . . . . . . . . . . . . . . . . . Impact . | . . . . . . . . . . . . . . . . . . . . . . . . Kinetic 2 | . . . . . . 2 . . . . . . . . . . . . . . . . . Secondary 1 | . . . . . . 1 . . . . . . . . . . . . . . . . . Self-Inflicted Damage 407 | . . . . . 69 145 71 52 . . . 44 . 26 . . . . . . . . . Shots 12 | . . . . . 2 4 2 1 . . . 1 . 2 . . . . . . . . . Rammed 1 | . . . . . . . . . . . . . . . . . . . . . 1 . . Targets Rammed 1 | . . . . . . . . . . . . . . . . . . . . . 1 . . Kicked . | . . . . . . . . . . . . . . . . . . . . . . . . Crushed . | . . . . . . . . . . . . . . . . . . . . . . . . Highest Temperature 438 | 60 20 20 . 52 225 438 1 . . . 5 116 59 290 321 197 82 . . 147 196 199 199 Average Temperature 101 | 26 15 15 . 34 72 167 1 . . . 3 40 27 91 128 99 41 . . 44 110 101 98 Received Heat Transfer 3131 | . . . . 12 243 1107 309 6 . . 87 99 27 357 87 48 6 . . 54 132 152 405 Effects 9 | . . . . . . 8 . . . . . . . 1 . . . . . . . . . Energy Bleed 8 | . . . . . . 7 . . . . . . . 1 . . . . . . . . . Short Circuit 1 | . . . . . . 1 . . . . . . . . . . . . . . . . . Siege Activations 14 | . . . . . . . . . . . . . . . . . . . . . 8 3 3 Total Turns 593 | . . . . . . . . . . . . . . . . . . . . . 311 132 150 Longest Duration 105 | . . . . . . . . . . . . . . . . . . . . . 105 73 73 Robots Corrupted 2 | . . . . . . . 1 . . . . . . . . . . . . . . . 1 Combat Hostiles 2 | . . . . . . . 1 . . . . . . . . . . . . . . . 1 Parts Fried 18 | . . . . . 1 1 6 2 . . . . . 4 . . . . . 2 2 . . Impact Corruptions . | . . . . . . . . . . . . . . . . . . . . . . . . Robots Melted 1 | . . . . . . . 1 . . . . . . . . . . . . . . . . Combat Hostiles 1 | . . . . . . . 1 . . . . . . . . . . . . . . . . Parts Melted 22 | . . . . . 1 . 5 . . . . . . 4 5 2 . . . . 3 1 1 Heat Transferred 7022 | . . . . . 150 550 1088 50 . . 259 507 37 1075 494 444 . . . . 1702 74 592 Parts Sabotaged . | . . . . . . . . . . . . . . . . . . . . . . . . Parts Stolen . | . . . . . . . . . . . . . . . . . . . . . . . . Parts Stripped . | . . . . . . . . . . . . . . . . . . . . . . . . Power Chain Reactions 12 | . . . . . 2 2 1 1 . . . 1 . 4 1 . . . . . . . . Missiles Intercepted . | . . . . . . . . . . . . . . . . . . . . . . . . Alert | -11 -10 -10 -10 -9 -8 -8 -7 -7 -7 -7 -6 -6 -5 -5 -5 -5 -5 -4 -4 -4 -3 -2 -1 ------- Run | Scr Mat Min Exi Min Mat Sto Fac Low Low Dat Pro Fac Fac Ext Cet Arc Hub Fac Was Fac Res Res Acc Peak Influence 575 | 10 32 30 . 87 575 468 374 . . . . 115 127 209 353 211 169 84 29 372 231 328 469 Average Influence 142 | 7 25 26 . 29 292 193 114 . . . . 72 39 68 182 159 114 82 29 193 107 213 306 Maximum Alert Level 2 | . . . . . 2 2 1 . . . . . . 1 1 1 . . . 1 1 1 2 Low Security (%) 72 | 100 100 100 . 100 30 59 77 . . . . 100 100 87 53 62 100 100 100 73 89 49 14 Level 1 22 | . . . . . 48 31 22 . . . . . . 12 46 37 . . . 26 10 50 54 Level 2 5 | . . . . . 21 9 . . . . . . . . . . . . . . . . 30 Level 3 . | . . . . . . . . . . . . . . . . . . . . . . . . Level 4 . | . . . . . . . . . . . . . . . . . . . . . . . . Level 5 . | . . . . . . . . . . . . . . . . . . . . . . . . High Security . | . . . . . . . . . . . . . . . . . . . . . . . . Max Security . | . . . . . . . . . . . . . . . . . . . . . . . . Squads Dispatched 43 | . . . . 1 5 5 8 . . . . 4 2 . . . 1 . . 2 9 2 4 Investigation 9 | . . . . . . 1 2 . . . . 3 . . . . . . . 1 1 1 . Extermination 13 | . . . . . . . 2 . . . . 1 1 . . . . . . . 5 1 3 Reinforcement 11 | . . . . . 1 2 4 . . . . . 1 . . . 1 . . 1 . . 1 Assault 4 | . . . . 1 1 2 . . . . . . . . . . . . . . . . . Garrison 6 | . . . . . 3 . . . . . . . . . . . . . . . 3 . . Intercept . | . . . . . . . . . . . . . . . . . . . . . . . . Construction Impeded 3 | . . . . . . 2 1 . . . . . . . . . . . . . . . . Haulers Reinforced 1 | . . . . . . . . . . . . . . . . . . . . . . . 1 Stealth | -11 -10 -10 -10 -9 -8 -8 -7 -7 -7 -7 -6 -6 -5 -5 -5 -5 -5 -4 -4 -4 -3 -2 -1 --------- Run | Scr Mat Min Exi Min Mat Sto Fac Low Low Dat Pro Fac Fac Ext Cet Arc Hub Fac Was Fac Res Res Acc Distress Signals 16 | . 1 . . . 3 3 . . . . . . . 3 1 . . . . 1 . 1 3 Communications Jammed . | . . . . . . . . . . . . . . . . . . . . . . . . Distress Signals . | . . . . . . . . . . . . . . . . . . . . . . . . Times Spotted 284 | . 2 3 . 6 29 43 33 2 . . 6 15 5 33 13 7 4 . . 11 29 16 27 Peak Tracking Total 16 | . 4 3 . 5 5 16 5 1 . . 4 4 3 5 5 2 4 . . 5 5 6 9 Tactical Retreats 20 | . . . . 1 2 4 2 . . . . 1 . 8 . . . . . . 1 1 . Traps | -11 -10 -10 -10 -9 -8 -8 -7 -7 -7 -7 -6 -6 -5 -5 -5 -5 -5 -4 -4 -4 -3 -2 -1 ------- Run | Scr Mat Min Exi Min Mat Sto Fac Low Low Dat Pro Fac Fac Ext Cet Arc Hub Fac Was Fac Res Res Acc Traps Triggered 19 | . . . . . 1 1 3 . . . . 5 . 4 . . 2 1 . 1 . 1 . Indirectly . | . . . . . . . . . . . . . . . . . . . . . . . . Trap Hack Attempts . | . . . . . . . . . . . . . . . . . . . . . . . . Triggered . | . . . . . . . . . . . . . . . . . . . . . . . . Disarmed . | . . . . . . . . . . . . . . . . . . . . . . . . Reprogrammed . | . . . . . . . . . . . . . . . . . . . . . . . . Reused . | . . . . . . . . . . . . . . . . . . . . . . . . Traps Extracted . | . . . . . . . . . . . . . . . . . . . . . . . . Installed . | . . . . . . . . . . . . . . . . . . . . . . . . Triggered 2 | . . . . . . 1 . . . . 1 . . . . . . . . . . . . Machines | -11 -10 -10 -10 -9 -8 -8 -7 -7 -7 -7 -6 -6 -5 -5 -5 -5 -5 -4 -4 -4 -3 -2 -1 ---------- Run | Scr Mat Min Exi Min Mat Sto Fac Low Low Dat Pro Fac Fac Ext Cet Arc Hub Fac Was Fac Res Res Acc Machines Disabled 20 | . . . . . 2 4 . . . . . . . . 4 2 . . . 4 . 1 3 Max in Single Turn 2 | . . . . . 1 1 . . . . . . . . 2 1 . . . 1 . 1 1 Garrison Access 7 | . . . . . 1 1 2 . . . . 1 . . . . . 1 . 1 . . . Machines Sabotaged . | . . . . . . . . . . . . . . . . . . . . . . . . Garrisons Compromised . | . . . . . . . . . . . . . . . . . . . . . . . . Overloaded Fab Kills . | . . . . . . . . . . . . . . . . . . . . . . . . Fab Network Shutdowns . | . . . . . . . . . . . . . . . . . . . . . . . . Hacking | -11 -10 -10 -10 -9 -8 -8 -7 -7 -7 -7 -6 -6 -5 -5 -5 -5 -5 -4 -4 -4 -3 -2 -1 --------- Run | Scr Mat Min Exi Min Mat Sto Fac Low Low Dat Pro Fac Fac Ext Cet Arc Hub Fac Was Fac Res Res Acc Machines Accessed 100 | . 4 . 4 2 4 12 17 1 . 4 . 13 6 3 1 1 3 2 . 5 8 3 7 Terminals 64 | . 4 . . 1 1 11 9 . . . . 9 6 3 1 . 3 . . 2 5 2 7 Fabricators 6 | . . . . . . . 2 . . . . 1 . . . . . 1 . 1 1 . . Repair Stations 2 | . . . . . . . . . . . . 1 . . . . . . . . . 1 . Recycling Units 4 | . . . . . 2 . 2 . . . . . . . . . . . . . . . . Scanalyzers 4 | . . . . . 1 . 2 . . . . . . . . . . . . 1 . . . Garrison Access 9 | . . . . . . 1 2 . . . . 2 . . . . . 1 . 1 2 . . Total Hacks 313 | . 18 . 23 3 11 44 41 1 . 29 . 28 17 10 2 1 6 3 . 14 38 7 17 Successful 173 | . 15 . 23 2 8 19 14 1 . 29 . 10 10 5 1 1 3 3 . 8 14 2 5 Failed 140 | . 3 . . 1 3 25 27 . . . . 18 7 5 1 . 3 . . 6 24 5 12 Catastrophic 26 | . 1 . . . . 5 4 . . . . 5 4 1 1 . . . . . 1 1 3 Database Lockouts . | . . . . . . . . . . . . . . . . . . . . . . . . Manual 163 | . 14 . 1 2 4 29 21 . . . . 18 12 10 1 . 6 . . 4 25 3 13 Terminals 203 | . 18 . . 2 4 43 26 . . . . 20 17 10 2 . 6 . . 5 28 5 17 Fabricators 18 | . . . . . . . 4 . . . . 3 . . . . . 2 . 4 5 . . Repair Stations 4 | . . . . . . . . . . . . 2 . . . . . . . . . 2 . Recycling Units 8 | . . . . . 4 . 4 . . . . . . . . . . . . . . . . Scanalyzers 11 | . . . . . 3 . 5 . . . . . . . . . . . . 3 . . . Garrison Access 14 | . . . . . . 1 2 . . . . 3 . . . . . 1 . 2 5 . . Terminal Hacks 100 | . 9 . 23 2 1 13 5 1 . 29 . 1 5 1 1 1 . . . 1 6 . 1 Record 34 | . . . 22 . . . . . . 11 . . . . . 1 . . . . . . . Part Schematic 14 | . 3 . . 1 . 1 . . . 8 . . . . . . . . . . 1 . . Robot Schematic 7 | . . . . . . . . . . 7 . . . . . . . . . . . . . Prototype ID Bank 5 | . . . . . . . 1 . . 3 . . 1 . . . . . . . . . . Open Door 6 | . . . . 1 . 4 . 1 . . . . . . . . . . . . . . . Level Access Points 3 | . . . . . . . . . . . . . . . . . . . . 1 1 . 1 Branch Access Points 4 | . 1 . . . . . 1 . . . . . 1 . . . . . . . 1 . . Emergency Access Points 1 | . . . . . . 1 . . . . . . . . . . . . . . . . . Machine Index 1 | . . . . . . . . . . . . . . . . . . . . . 1 . . Terminal Index 1 | . . . . . . . . . . . . . 1 . . . . . . . . . . Scanalyzer Index 1 | . 1 . . . . . . . . . . . . . . . . . . . . . . Alert Level 3 | . . . . . . 1 1 . . . . . . . . . . . . . 1 . . Unreport Threat 8 | . 1 . . . 1 2 1 . . . . . 1 . 1 . . . . . 1 . . Locate Traps 9 | . 2 . . . . 3 1 . . . . 1 1 1 . . . . . . . . . Registered Components 1 | . 1 . . . . . . . . . . . . . . . . . . . . . . Zone Layout 1 | . . . . . . 1 . . . . . . . . . . . . . . . . . EX-Prototype ID Bank 1 | . . . 1 . . . . . . . . . . . . . . . . . . . . Fabricator Hacks 9 | . . . . . . . 1 . . . . 1 . . . . . 2 . 1 4 . . Load Schematic 6 | . . . . . . . 1 . . . . 1 . . . . . 1 . 1 2 . . Build 3 | . . . . . . . . . . . . . . . . . . 1 . . 2 . . Repair Station Hacks 3 | . . . . . . . . . . . . 2 . . . . . . . . . 1 . Scan Component 2 | . . . . . . . . . . . . 1 . . . . . . . . . 1 . Repair 1 | . . . . . . . . . . . . 1 . . . . . . . . . . . Recycling Unit Hacks 4 | . . . . . 3 . 1 . . . . . . . . . . . . . . . . Retrieve Matter 1 | . . . . . 1 . . . . . . . . . . . . . . . . . . Retrieve Components 3 | . . . . . 2 . 1 . . . . . . . . . . . . . . . . Scanalyzer 9 | . . . . . 3 . 3 . . . . . . . . . . . . 3 . . . Insert Component 4 | . . . . . 1 . 2 . . . . . . . . . . . . 1 . . . Analyze 5 | . . . . . 2 . 1 . . . . . . . . . . . . 2 . . . Garrison Access Hacks 6 | . . . . . . 1 2 . . . . 1 . . . . . 1 . 1 . . . Seal Access 6 | . . . . . . 1 2 . . . . 1 . . . . . 1 . 1 . . . Unauthorized Hacks 132 | . 13 . . . 3 17 16 . . . . 14 11 12 . . 9 . . 5 16 4 12 Terminals 41 | . 6 . . . 1 5 2 . . . . 5 5 4 . . 3 . . 2 3 1 4 Track 16 | . 4 . . . . 3 . . . . . 3 2 1 . . . . . 1 1 . 1 Assimilate 2 | . . . . . . . . . . . . . 1 . . . 1 . . . . . . Botnet 21 | . 2 . . . 1 2 2 . . . . 2 2 2 . . 2 . . 1 2 1 2 Disrupt 1 | . . . . . . . . . . . . . . . . . . . . . . . 1 Operators 1 | . . . . . . . . . . . . . . 1 . . . . . . . . . Fabricators 1 | . . . . . . . . . . . . . . . . . . . . . 1 . . Prioritize 1 | . . . . . . . . . . . . . . . . . . . . . 1 . . Repair Stations . | . . . . . . . . . . . . . . . . . . . . . . . . Recycling Units . | . . . . . . . . . . . . . . . . . . . . . . . . Scanalyzers . | . . . . . . . . . . . . . . . . . . . . . . . . Garrison Access . | . . . . . . . . . . . . . . . . . . . . . . . . Data Cores Recovered 2 | . . . . . . . . . . . . . 1 . . . . . . . 1 . . Used 2 | . . . . . . . . . . . . . 1 . . . . . . . 1 . . Hacking Detections 79 | . 4 . . 1 3 11 13 . . . . 12 6 3 1 . 3 . . 4 8 3 7 Full Trace Events 6 | . . . . . . . 1 . . . . 2 . . . . . . . 1 1 1 . Feedback Events . | . . . . . . . . . . . . . . . . . . . . . . . . Feedback Blocked . | . . . . . . . . . . . . . . . . . . . . . . . . Robot Schematics Acquired 7 | . . . . . . . . . . 7 . . . . . . . . . . . . . Robots Built . | . . . . . . . . . . . . . . . . . . . . . . . . Matter . | . . . . . . . . . . . . . . . . . . . . . . . . Time . | . . . . . . . . . . . . . . . . . . . . . . . . Total Robot Build Rating . | . . . . . . . . . . . . . . . . . . . . . . . . Part Schematics Acquired 17 | . 3 . . 1 1 1 1 . . 8 . . . . . . . . . 1 1 . . Parts Built 2 | . . . . . . . . . . . . . . . . . . . . . 2 . . Matter 855 | . . . . . . . . . . . . . . . . . . 285 . . 570 . . Time 456 | . . . . . . . . . . . . . . . . . . 152 . . 304 . . Total Part Build Rating 10 | . . . . . . . . . . . . . . . . . . . . . 10 . . Parts Repaired 1 | . . . . . . . . . . . . 1 . . . . . . . . . . . Time 38 | . . . . . . . . . . . . 38 . . . . . . . . . . . Parts Recycled . | . . . . . . . . . . . . . . . . . . . . . . . . Recycled Matter . | . . . . . . . . . . . . . . . . . . . . . . . . Retrieved Matter . | . . . . . . . . . . . . . . . . . . . . . . . . Retrieved Components 18 | . . . . . 11 . 7 . . . . . . . . . . . . . . . . Parts Scanalyzed 3 | . . . . . 1 . 1 . . . . . . . . . . . . 1 . . . Part Schematics Acquired 3 | . . . . . 1 . 1 . . . . . . . . . . . . 1 . . . Parts Damaged 1 | . . . . . . . 1 . . . . . . . . . . . . . . . . Bothacking | -11 -10 -10 -10 -9 -8 -8 -7 -7 -7 -7 -6 -6 -5 -5 -5 -5 -5 -4 -4 -4 -3 -2 -1 ------------ Run | Scr Mat Min Exi Min Mat Sto Fac Low Low Dat Pro Fac Fac Ext Cet Arc Hub Fac Was Fac Res Res Acc Used RIF Installer . | . . . . . . . . . . . . . . . . . . . . . . . . Robots Hacked . | . . . . . . . . . . . . . . . . . . . . . . . . Non-combat . | . . . . . . . . . . . . . . . . . . . . . . . . Combat . | . . . . . . . . . . . . . . . . . . . . . . . . Robot Hacks Applied . | . . . . . . . . . . . . . . . . . . . . . . . . Relay Couplers Released 4 | . . . . . 4 . . . . . . . . . . . . . . . . . . Machine Destruction 4 | . . . . . 4 . . . . . . . . . . . . . . . . . . Robots Rewired 17 | . . . . . . . . . . . . . . 17 . . . . . . . . . Allies Hacked . | . . . . . . . . . . . . . . . . . . . . . . . . Hacks Repelled . | . . . . . . . . . . . . . . . . . . . . . . . . Allies | -11 -10 -10 -10 -9 -8 -8 -7 -7 -7 -7 -6 -6 -5 -5 -5 -5 -5 -4 -4 -4 -3 -2 -1 -------- Run | Scr Mat Min Exi Min Mat Sto Fac Low Low Dat Pro Fac Fac Ext Cet Arc Hub Fac Was Fac Res Res Acc Total Allies 53 | . . . . 6 . 5 . . . . 1 . . 21 . . . . 20 . . . . Largest Group 20 | . . . . 4 4 3 . . . . 1 1 . 9 9 1 1 . 20 20 1 . . Highest-Rated Group 742 | . . . . 71 66 93 . . . . 94 94 . 262 262 31 31 . 742 742 27 . . Highest-Rated Ally 94 | . . . . 31 31 31 . . . . 94 94 . 37 37 31 31 . 50 50 27 . . Total Orders 6 | . . . . . . 1 3 . . . . . . 2 . . . . . . . . . STAY 1 | . . . . . . . . . . . . . . 1 . . . . . . . . . GUARD 1 | . . . . . . . . . . . . . . 1 . . . . . . . . . EXPLORE 2 | . . . . . . . 2 . . . . . . . . . . . . . . . . RETURN 2 | . . . . . . 1 1 . . . . . . . . . . . . . . . . Ally Attacks 371 | . . . . 33 35 33 . . . . 19 26 . 71 51 16 1 . . 86 . . . Total Damage 8185 | . . . . 261 468 549 . . . . 716 755 . 1534 1151 316 20 . . 2415 . . . Kills 57 | . . . . 4 11 8 . . . . 4 4 . 7 7 1 . . . 11 . . . Allies Corrupted 1 | . . . . . . . . . . . . . . . . . . . . 1 . . . Allies Melted . | . . . . . . . . . . . . . . . . . . . . . . . . Intel | -11 -10 -10 -10 -9 -8 -8 -7 -7 -7 -7 -6 -6 -5 -5 -5 -5 -5 -4 -4 -4 -3 -2 -1 ------- Run | Scr Mat Min Exi Min Mat Sto Fac Low Low Dat Pro Fac Fac Ext Cet Arc Hub Fac Was Fac Res Res Acc Robot Analysis Total . | . . . . . . . . . . . . . . . . . . . . . . . . Derelict Logs Recovered 5 | . . . . 3 . . . 1 . . 1 . . . . . . . . . . . . Drone Launches 5 | . . . . . . 2 3 . . . . . . . . . . . . . . . . Drone Recoveries 3 | . . . . . . 2 1 . . . . . . . . . . . . . . . . Exploration | -11 -10 -10 -10 -9 -8 -8 -7 -7 -7 -7 -6 -6 -5 -5 -5 -5 -5 -4 -4 -4 -3 -2 -1 ------------- Run | Scr Mat Min Exi Min Mat Sto Fac Low Low Dat Pro Fac Fac Ext Cet Arc Hub Fac Was Fac Res Res Acc Turns Passed 17491 | 75 149 72 453 679 1180 1768 3053 406 356 87 272 1662 480 1492 180 153 298 106 155 649 1765 727 1274 Spaces Moved 10235 | 39 142 58 422 538 593 634 2032 300 300 80 200 1206 373 662 91 73 183 86 125 415 807 327 549 Core . | . . . . . . . . . . . . . . . . . . . . . . . . Treads 1160 | . . . . . 40 97 . . . . . 1 . 135 . . . . . . 74 264 549 Legs 18 | 18 . . . . . . . . . . . . . . . . . . . . . . . Wheels 9057 | 21 142 58 422 538 553 537 2032 300 300 80 200 1205 373 527 91 73 183 86 125 415 733 63 . Hover . | . . . . . . . . . . . . . . . . . . . . . . . . Flight . | . . . . . . . . . . . . . . . . . . . . . . . . Fastest Speed 90 | 90 90 90 100 110 100 120 110 110 110 110 110 110 105 105 110 110 110 120 120 120 130 130 145 Average Speed 123 | 103 90 96 106 110 124 137 117 114 111 110 117 119 107 132 110 110 113 120 120 129 133 153 159 Slowest Speed 220 | 120 90 100 110 110 180 200 130 120 120 110 120 180 115 220 110 110 130 120 120 130 157 158 165 Overloaded Moves . | . . . . . . . . . . . . . . . . . . . . . . . . Propulsion Burnouts . | . . . . . . . . . . . . . . . . . . . . . . . . Robots Hopped . | . . . . . . . . . . . . . . . . . . . . . . . . Cave-ins Triggered . | . . . . . . . . . . . . . . . . . . . . . . . . Exploration Rate (%) 43 | 3 35 21 72 93 48 82 52 55 50 69 44 32 8 70 48 79 26 3 80 13 24 10 20 Regions Visited 23 Branch Regions 12 Pre-discovered Areas 3 | . . . . . . . . 1 . 1 1 . . . . . . . . . . . . Known Exits Taken 8 | . 1 . . . 1 1 1 . . . 1 . 1 . . . . . . 1 1 . . Unknown Exits Taken 13 | 1 . 1 1 1 . . . 1 1 1 . 1 . 1 1 1 1 . . . . 1 . Scrap Searched 10 | . . 1 . 1 . . . 2 4 . 2 . . . . . . . . . . . . Spaces Dug 175 | . . . . 3 7 20 56 2 5 . . 13 5 . . . 5 1 . 6 17 2 33 Terrain Destroyed 342 | . . . . 3 24 64 118 3 5 . . 19 5 20 3 3 6 1 . 6 25 3 34 Melee 168 | . . . . 3 7 15 56 2 5 . . 13 4 . . . 5 1 . 6 17 2 32 Projectile 40 | . . . . . 6 4 . . . . . . 1 11 3 3 1 . . . 8 1 2 AOE 134 | . . . . . 11 45 62 1 . . . 6 . 9 . . . . . . . . . Actions | -11 -10 -10 -10 -9 -8 -8 -7 -7 -7 -7 -6 -6 -5 -5 -5 -5 -5 -4 -4 -4 -3 -2 -1 --------- Run | Scr Mat Min Exi Min Mat Sto Fac Low Low Dat Pro Fac Fac Ext Cet Arc Hub Fac Was Fac Res Res Acc Total 13953 | 54 159 67 425 613 950 1383 2549 350 314 79 219 1363 432 1171 134 107 260 89 131 498 1331 481 794 Wait 2171 | 1 13 3 . 59 220 573 308 34 4 . 2 75 13 197 5 9 60 . . 52 369 87 87 Move 10212 | 38 141 57 421 537 592 633 2031 299 299 79 199 1205 372 661 90 72 182 86 124 414 806 326 548 Hop . | . . . . . . . . . . . . . . . . . . . . . . . . Pick Up 153 | . 1 1 2 5 18 27 21 1 . . 2 10 10 5 4 3 . . 1 3 16 6 17 Fast Attach 63 | 3 . . . . 8 8 10 1 1 . . 2 2 9 3 1 2 . 2 1 4 2 4 Attach 88 | . 1 1 . . 10 17 8 1 . . 1 7 5 3 1 1 1 2 . . 6 7 16 Detach 17 | 1 . . . . 4 . 3 . . . . 1 2 . . 1 . . 2 . 2 1 . Swap 175 | . . . 1 4 16 12 32 7 4 . 6 12 6 12 5 . 5 . . 3 26 13 11 Drop 145 | 1 1 1 1 1 19 17 30 1 1 . 1 7 9 16 7 1 2 . 2 5 15 2 5 Fire 491 | 10 2 4 . 4 46 78 42 4 . . 8 22 9 58 19 19 2 . . 10 67 26 61 Melee 219 | . . . . 3 17 18 64 2 5 . . 14 4 . . . 6 1 . 10 19 11 45 Ram . | . . . . . . . . . . . . . . . . . . . . . . . . Kick . | . . . . . . . . . . . . . . . . . . . . . . . . Crush 1 | . . . . . . . . . . . . . . . . . . . . . 1 . . Escape Stasis 40 | . . . . . . . . . . . . 8 . 32 . . . . . . . . . Rewire 178 | . . . . . . . . . . . . . . 178 . . . . . . . . . Trap . | . . . . . . . . . . . . . . . . . . . . . . . . Miscellaneous . | . . . . . . . . . . . . . . . . . . . . . . . . Route ------- -11/Scrapyard -10/Materials -10/Mines -10/Exiles (discovered 2 exits: *Min x2) -9/Mines (discovered 2 exits: *Mat x2) -8/Materials (discovered 3 exits: *Fac x2 / *Sto) -8/Storage -7/Factory (discovered 4 exits: *Fac x2 / *Low x2) -7/Lower Caves -7/Lower Caves -7/Data Miner -6/Proximity Caves -6/Factory (discovered 2 exits: *Fac / [*Low]) -5/Factory (discovered 5 exits: *Fac / Upp x2 / *Ext x2) -5/Extension (discovered 2 exits: *Fac / *Cet) -5/Cetus -5/Archives (discovered 2 exits: *Fac / *Hub) -5/Hub_04(d) -4/Factory -4/Waste -4/Factory (discovered 4 exits: *Res x4) -3/Research (discovered 6 exits: *Res x3 / Arm / Tes x2) -2/Research (discovered 2 exits: *Acc / [Qua]) -1/Access To Epsilon Eridani History --------- Turn | Location | Event 1 | -11/Scrapyard | Discovered new exit (range 2) 76 | -11/Scrapyard | Entered Materials 96 | -10/Materials | Identified exit to Mines 156 | -10/Materials | Met 8R-AWN 225 | -10/Materials | Entered Mines 228 | -10/Mines | Followed 8R-AWN into the Mines 292 | -10/Mines | Discovered new exit (range 5) 297 | -10/Mines | Entered Exiles 313 | -10/Exiles | Discovered new exit (range 15) 315 | -10/Exiles | Build established: Mutant 323 | -10/Exiles | Welcomed by 8R-AWN 341 | -10/Exiles | Met EX-HEX 381 | -10/Exiles | Met EX-DEC 453 | -10/Exiles | Discovered new exit (range 10) 572 | -10/Exiles | Met EX-BIN 585 | -10/Exiles | Aligned with FarCom system 586 | -10/Exiles | Given EX-Vault access code 633 | -10/Exiles | Opened EX-Vault 641 | -10/Exiles | Found Longsword +1 666 | -10/Exiles | Warned to stay clear of 0b10 Research branches 750 | -10/Exiles | Left Exiles lab with Longsword +1 750 | -10/Exiles | Entered Mines 824 | -9/Mines | Assisted by bots powering up and referring to "LRC-V3" 879 | -9/Mines | Met a Derelict testing a Signal Generator 1009 | -9/Mines | Learned Materials garrison access intel 1119 | -9/Mines | Learned location of 1 exit from Materials 1146 | -9/Mines | Learned 4 Materials zone layouts 1234 | -9/Mines | Discovered new exit (range 10) 1242 | -9/Mines | Received a Rocket Launcher from a helpful Derelict 1288 | -9/Mines | Met a Derelict who couldn't figure out how to use a Trap Extractor 1373 | -9/Mines | Discovered new exit (range 10) 1429 | -9/Mines | Entered Materials 1429 | -8/Materials | Accompanied by 4 allies 1429 | -8/Materials | Evolved 4 slots: Propulsion x2, Utility x2 1430 | -8/Materials | Identified exit to Factory 1431 | -8/Materials | Identified exit to Storage 1432 | -8/Materials | Loaded intel: 1 garrison access location 1434 | -8/Materials | Led the pair of lost Derelicts to an unsafe place 2302 | -8/Materials | Discovered exit to Factory (range 15) 2609 | -8/Materials | Entered Storage 3347 | -8/Storage | Lost 3 parts (1n1u1w) 3381 | -8/Storage | Destroyed 7 combat bots 3385 | -8/Storage | Core integrity fell below 50% 3440 | -8/Storage | Lost 5 parts (2n1u2w) 3645 | -8/Storage | Build established: Scavenger-Mutant 3753 | -8/Storage | Met a pair of Derelict thieves 3877 | -8/Storage | Destroyed 11 combat bots 3946 | -8/Storage | Lost 10 parts (1p4n2u3w) 4146 | -8/Storage | Discovered exit to Factory (range 15) 4377 | -8/Storage | Entered Factory 4377 | -7/Factory | Evolved 2 slots: Propulsion x1, Utility x1 4994 | -7/Factory | Discovered new exit (range 5) 5170 | -7/Factory | Build established: Scavenger-Assassin 5861 | -7/Factory | Identified exit to Factory 6116 | -7/Factory | Identified exit to Lower Caves 6450 | -7/Factory | Discovered exit to Factory (range 7) 6904 | -7/Factory | Build established: Mutant 7430 | -7/Factory | Entered Lower Caves 7538 | -7/Lower Caves | Encountered a Warlord checkpoint 7689 | -7/Lower Caves | Attracted the attention of an 0b10 checkpoint 7798 | -7/Lower Caves | Discovered new exit (range 11) 7836 | -7/Lower Caves | Entered another Lower Caves area 8167 | -7/Lower Caves | Discovered new exit (range 14) 8192 | -7/Lower Caves | Entered Data Miner 8192 | -7/Data Miner | Discovered new exit (range 6) 8213 | -7/Data Miner | Met Data Miner 8233 | -7/Data Miner | Learned location of Section 7 (-2) 8233 | -7/Data Miner | Acquired the access code to Warlord's prototype stash 8254 | -7/Data Miner | Received God Mode back door access code from Data Miner 8279 | -7/Data Miner | Entered Proximity Caves 8349 | -6/Proximity Caves | Escorted by Enhanced Grunt 8349 | -6/Proximity Caves | Attracted the attention of an 0b10 checkpoint 8379 | -6/Proximity Caves | Spotted B-75 Beast 8398 | -6/Proximity Caves | Destroyed B-75 Beast 8533 | -6/Proximity Caves | Discovered exit to Factory (range 13) 8551 | -6/Proximity Caves | Entered Factory 8551 | -6/Factory | Accompanied by 1 ally 8551 | -6/Factory | Evolved 2 slots: Utility x1, Weapon x1 8882 | -6/Factory | Build established: Assassin 8957 | -6/Factory | Incoming investigation squad redirected 9084 | -6/Factory | Repaired Reactive Plating? 9630 | -6/Factory | Build established: Mutant 9867 | -6/Factory | Discovered new exit (range 12) 9908 | -6/Factory | Discovered new exit (range 6) 10082 | -6/Factory | Build established: Skirmisher 10213 | -6/Factory | Entered another Factory area 10213 | -5/Factory | Evolved 2 slots: Propulsion x1, Utility x1 10336 | -5/Factory | Discovered new exit (range 15) 10353 | -5/Factory | Identified exit to Upper Caves 10353 | -5/Factory | Identified exit to Extension 10486 | -5/Factory | Discovered new exit (range 16) 10693 | -5/Factory | Entered Extension 11054 | -5/Extension | Rescued a captive Derelict 11441 | -5/Extension | Spotted B-75 Beast 11530 | -5/Extension | Spotted B-75 Beast 11565 | -5/Extension | Allies destroyed B-75 Beast 11593 | -5/Extension | Disrupted transfer network 11636 | -5/Extension | Destroyed B-75 Beast 11687 | -5/Extension | Rescued a captive Derelict 11875 | -5/Extension | Rescued a captive Derelict 11876 | -5/Extension | Rescued a captive Derelict 12131 | -5/Extension | Discovered new exit (range 10) 12132 | -5/Extension | Discovered new exit (range 6) 12185 | -5/Extension | Entered Cetus 12185 | -5/Cetus | Accompanied by 9 allies 12201 | -5/Cetus | Spotted Cetus Guard 12201 | -5/Cetus | Spotted Cetus Guard 12204 | -5/Cetus | Spotted Cetus Guard 12205 | -5/Cetus | Spotted Cetus Guard 12222 | -5/Cetus | Allies destroyed Cetus Guard 12231 | -5/Cetus | Allies destroyed Cetus Guard 12232 | -5/Cetus | Allies destroyed Cetus Guard 12234 | -5/Cetus | Destroyed Cetus Guard 12279 | -5/Cetus | Cetus Manufacturing Module disabled 12345 | -5/Cetus | Discovered new exit (range 16) 12365 | -5/Cetus | Entered Archives 12365 | -5/Archives | Accompanied by 1 ally 12474 | -5/Archives | Unable to access archive contents 12475 | -5/Archives | Build established: Scavenger-Tank 12476 | -5/Archives | Discovered new exit (range 16) 12491 | -5/Archives | Discovered new exit (range 15) 12518 | -5/Archives | Entered Hub_04(d) 12518 | -5/Hub_04(d) | Accompanied by 1 ally 12785 | -5/Hub_04(d) | Discovered new exit (range 10) 12805 | -5/Hub_04(d) | System corruption reached 10% 12816 | -5/Hub_04(d) | Entered Factory 12816 | -4/Factory | Evolved 2 slots: Utility x2 12922 | -4/Factory | Sucked down chute 12922 | -4/Factory | Entered Waste 12923 | -4/Waste | Joined by Warlord forces that had cleared the area 13025 | -4/Waste | Build established: Scavenger-Assassin 13040 | -4/Waste | Discovered new exit (range 13) 13077 | -4/Waste | Entered Factory 13077 | -4/Factory | Accompanied by 20 allies 13177 | -4/Factory | Identified exit to Research 13639 | -4/Factory | Incoming investigation squad redirected 13726 | -4/Factory | Entered Research 13726 | -3/Research | Accompanied by 1 ally 13726 | -3/Research | Evolved 2 slots: Utility x2 14202 | -3/Research | Identified exit to Armory 14202 | -3/Research | Identified exit to Testing 14596 | -3/Research | Garrison activated, responded to threat 14764 | -3/Research | Fabricated Exp. Terrain Scanner (x1) 14885 | -3/Research | Lost 3 parts (3u) 14974 | -3/Research | Fabricated Lgt. Regenerative Plating? 15181 | -3/Research | Identified exit to Research 15491 | -3/Research | Entered another Research area 15491 | -2/Research | Evolved 2 slots: Utility x1, Weapon x1 15872 | -2/Research | Discovered new exit (range 30) 15874 | -2/Research | Discovered new exit (range 25) 16218 | -2/Research | Entered Access 16218 | -1/Access | Evolved 2 slots: Power x1, Utility x1 16662 | -1/Access | Identified exit to Surface 16866 | -1/Access | Destroyed 10 combat bots 16915 | -1/Access | Lost 3 parts (3u) 17061 | -1/Access | System corruption reached 10% 17099 | -1/Access | Lost 7 parts (1p3n2u1w) 17347 | -1/Access | Build established: Scavenger-Mutant 17438 | -1/Access | Spotted B-99 Colossus 17445 | -1/Access | Spotted B-99 Colossus 17492 | *** | Escaped! Last Messages --------------- 17473_ Slug penetrates Sealed Heavy Doors. 17473_ Slug penetrates Reinforced Barrier. 17474_ Penetrated by Slug. 17474_ Slug penetrates Sealed Heavy Doors. 17474_ Penetrated by Slug. 17474_ Critical hit. 17474_ Myomer Leg destroyed. 17474_ Penetrated by Slug. 17474_ Slug penetrates Sealed Heavy Doors. 17478_ Biometal Medium Treads destroyed. 17478_ Penetrated by Slug. 17478_ Slug penetrates Sealed Heavy Doors. 17479_ 4KJ| >9 FYYO>U P8ZZA1,GP 17481_ Enh. Nova Cannon destroyed. 17481_ Penetrated by Slug. 17481_ Slug penetrates Sealed Heavy Doors. 17481_ Penetrated by Slug. 17481_ Slug penetrates Sealed Heavy Doors. 17486_ Main Access Shell breached. 17489_ Slug penetrates Sealed Heavy Doors. Map ----- +----------------------------------------------------+ | ? ? ? ###############?#####?#?????????????? | | ? ? # ####?#############?#?##?#???????????? | | ?? ? ? #? ##########?########?#?####??????????? | | ? # #########??####?#######???#?????????? | | ?? ? # ########?###?#####?#######?#????????? | | ? # ####?#####?#################????????? | | ########### ##########################??#???????? | | + ###########################?????????? | | ? ? ? ? #############??###?##??????? | | ? # # ####################???????? | | "" ? # # " ################??###??????? | | """ # # """ ####?#################?#???? | | # # """ ###########?##########?????? | | # # " ##?####################????? | | ########?## + ##?####################????? | | ########### # ###########?###?########???? | | # # #####################?###??? | | # ###############################?## ?? | | # ##############################?###??? | | # #######"###########?#########??### ?? | | # """T"""" "?"" #####? ?? | | #" " " """" ? """" ######??? | | #%" " """""" """" "#####"## | | #" " " " """" BB | | # " " "" """ BB | | # ! % " " @" " """ | | # [ !!" " " " | | # !!![ " """""" """" BB "##""#### | | # =|==!! %" """" BB # | | # *%! %*[ " """" # | | # =#######"##################### " | | ########### ######"#"###############?#### """=! | | ########### ###### ###########?########## """%| | | ########### ####### ##################### "!*[ | | ########### ########"#################### | | ########### # #########?######### | | ########### # ################### | | ########### # ################### | | ########### # [ ################### | | ########### # ################### | | ########### # #######################"### | | ##### # #######################"### | | ##### # ##################?# | | ##### ###+########################?# | | # """T""" ######### " | | # """ """ ######### "" | | ### # ######### " | | ### # ######### | | ### # = ######### = | | ### # ######### | +----------------------------------------------------+ Best States ------------- Heat Dissipation 90 Coolant Potential 80 Energy Generation 45 Energy Capacity 1440 Matter Stores 315 Matter Capacity 350 Sight Range 16 Terrain Scan Range 30 Terrain Scan Density 310 Armor Coverage 1650 Resistance: KI 20 Propulsion Shielding 33 Weapon Cycling 25 Phase Shifting 15 Evasion (%) 55 Core Analysis 10 Recoil Reduction 6 Offensive Hacking 12 Defensive Hacking 12 Item Schematics ----------------- Hcp. Storage Unit | -10/Materials | Hacked Com. Wheel | -10/Materials | Hacked Lgt. Treads | -10/Materials | Hacked Terrain Scan Processor | -9/Mines | Hacked Adv. Treads | -8/Materials | Scanalyzed Imp. Terrain Scan Processor | -8/Storage | Hacked Arm. Huge Wheel | -7/Factory | Scanalyzed Combat Drone Bay | -7/Data Miner | Free Lgt. Regenerative Plating | -7/Data Miner | Free Exp. Cesium-ion Thruster | -7/Data Miner | Free Exp. Sensor Array | -7/Data Miner | Free Exp. Terrain Scanner | -7/Data Miner | Free Tactical Coordination Suite | -7/Data Miner | Free Exp. ECM Suite | -7/Data Miner | Free Mni. Smartbomb Launcher | -7/Data Miner | Free Centrium Medium Armor Plating | -4/Factory | Scanalyzed Adv. Terrain Scan Processor | -3/Research | Hacked Robot Schematics ------------------ S-27 Virus | -7/Data Miner | Free G-50 Soldier | -7/Data Miner | Free G-67 Veteran | -7/Data Miner | Free L-41 Fighter | -7/Data Miner | Free X-72 Disruptor | -7/Data Miner | Free H-66 Slayer | -7/Data Miner | Free I-36 Angel | -7/Data Miner | Free Fabricated ------------ Exp. Terrain Scanner | x1 | -3/Research Lgt. Regenerative Plating | x1 | -3/Research Alien Tech Used ----------------- None Achievements -------------- None Challenges ------------ None Game ------ Seed LightpackHelicalDrive Manual? 0 Play Time 06:14:29 Cumulative 650.0 hours Start 2020.02.05 @ 07:36:39 End 2020.02.08 @ 12:22:19 Sessions 31 Manual Loads 0 Difficulty Rogue Special Mode None Game No. 196 Rogue 196 Adventurer 0 Explorer 0 Win Type 0 Total 26 Types 19/1/3/3/0/0/0 Lore% 65 Gallery% 84 Achievement% 66 Wizard Run 0 Options --------- ASCII 0 Keyboard 1 Movement Numpad Keybinds 0 Fullscreen 1 Font 24/Smallcaps Map View 76x50 Tactical HUD 1 Map Filters NONE Filters NONE Steam 1 RUN: 22874363-8264-40e7-bb6c-57d07403c256